[Event "Titled Tuesday Blitz April 26 Early 2022"]
[White "Aaditya Dhingra"]
[Black "Fedoseev, Vladimir"]
[WhiteFideId "25678191"]
[BlackFideId "24130737"]
[WhiteElo "1849"]
[BlackElo "2726"]
[Result "0-1"]
[Round "01"]
[TimeControl "180+1"]
[Date "2022.04.26"]
[WhiteClock "0:00:10"]
[BlackClock "0:00:14"]

1. e4 {[%clk 0:02:56]}  c6 {[%clk 0:02:56]} 2. d4 {[%clk 0:02:54]}  d5 {[%clk 0:02:56]} 3. e5 {[%clk 0:02:54]}  Bf5 {[%clk 0:02:54]} 4. Bd3 {[%clk 0:02:54]}  Bxd3 {[%clk 0:02:50]} 5. Qxd3 {[%clk 0:02:54]}  e6 {[%clk 0:02:51]} 6. Ne2 {[%clk 0:02:50]}  c5 {[%clk 0:02:51]} 7. c3 {[%clk 0:02:49]}  Nc6 {[%clk 0:02:50]} 8. O-O {[%clk 0:02:48]}  Rc8 {[%clk 0:02:47]} 9. a3 {[%clk 0:02:46]}  c4 {[%clk 0:02:44]} 10. Qc2 {[%clk 0:02:43]}  h5 {[%clk 0:02:40]} 11. f4 {[%clk 0:02:42]}  g6 {[%clk 0:02:39]} 12. Be3 {[%clk 0:02:40]}  Nge7 {[%clk 0:02:37]} 13. Nd2 {[%clk 0:02:40]}  Nf5 {[%clk 0:02:37]} 14. Bf2 {[%clk 0:02:40]}  Be7 {[%clk 0:02:37]} 15. Nf3 {[%clk 0:02:35]}  b5 {[%clk 0:02:33]} 16. g3 {[%clk 0:02:33]}  a5 {[%clk 0:02:33]} 17. h3 {[%clk 0:02:31]}  Kd7 {[%clk 0:02:33]} 18. Kg2 {[%clk 0:02:21]}  g5 {[%clk 0:02:29]} 19. g4 {[%clk 0:01:58]}  hxg4 {[%clk 0:02:26]} 20. hxg4 {[%clk 0:01:57]}  Nh6 {[%clk 0:02:16]} 21. fxg5 {[%clk 0:01:54]}  Nxg4 {[%clk 0:02:14]} 22. Qd2 {[%clk 0:01:53]}  Nxf2 {[%clk 0:02:07]} 23. Kxf2 {[%clk 0:01:50]}  Qg8 {[%clk 0:02:06]} 24. Rh1 {[%clk 0:01:46]}  Qg6 {[%clk 0:02:04]} 25. Qf4 {[%clk 0:01:45]}  Rcg8 {[%clk 0:01:59]} 26. Rh6 {[%clk 0:01:36]}  Rxh6 {[%clk 0:01:45]} 27. gxh6 {[%clk 0:01:36]}  Rh8 {[%clk 0:01:26]} 28. Rh1 {[%clk 0:01:27]}  Bf8 {[%clk 0:01:25]} 29. Rg1 {[%clk 0:01:23]}  Bxh6 {[%clk 0:00:48]} 30. Rxg6 {[%clk 0:01:22]}  Bxf4 {[%clk 0:00:48]} 31. Rf6 {[%clk 0:01:23]}  Bh6 {[%clk 0:00:48]} 32. Rxf7+ {[%clk 0:01:23]}  Ne7 {[%clk 0:00:48]} 33. Nh4 {[%clk 0:01:20]}  Rf8 {[%clk 0:00:45]} 34. Rxf8 {[%clk 0:01:13]}  Bxf8 {[%clk 0:00:46]} 35. Kf3 {[%clk 0:01:11]}  Bh6 {[%clk 0:00:44]} 36. Kg4 {[%clk 0:01:11]}  Nc6 {[%clk 0:00:42]} 37. Kh5 {[%clk 0:01:11]}  Be3 {[%clk 0:00:38]} 38. Kg6 {[%clk 0:01:05]}  b4 {[%clk 0:00:32]} 39. axb4 {[%clk 0:01:04]}  axb4 {[%clk 0:00:33]} 40. Ng2 {[%clk 0:00:57]}  Bd2 {[%clk 0:00:29]} 41. Kf7 {[%clk 0:00:49]}  Nd8+ {[%clk 0:00:23]} 42. Kf6 {[%clk 0:00:48]}  b3 {[%clk 0:00:19]} 43. Ngf4 {[%clk 0:00:48]}  Be3 {[%clk 0:00:18]} 44. Ng6 {[%clk 0:00:48]}  Ke8 {[%clk 0:00:14]} 45. Ngf4 {[%clk 0:00:47]}  Kd7 {[%clk 0:00:13]} 46. Ng6 {[%clk 0:00:47]}  Bh6 {[%clk 0:00:13]} 47. Ngf4 {[%clk 0:00:46]}  Bf8 {[%clk 0:00:11]} 48. Ng6 {[%clk 0:00:11]}  Ba3 {[%clk 0:00:12]} 49. Ng3 {[%clk 0:00:10]}  Bxb2 {[%clk 0:00:12]} 50. Nf8+ {[%clk 0:00:10]}  Kc6 {[%clk 0:00:11]} 51. Nxe6 {[%clk 0:00:11]}  Nxe6 {[%clk 0:00:11]} 52. Kxe6 {[%clk 0:00:12]}  Bxc3 {[%clk 0:00:12]} 53. Ne2 {[%clk 0:00:10]}  Bd2 {[%clk 0:00:12]} 54. Kf7 {[%clk 0:00:09]}  b2 {[%clk 0:00:13]} 55. e6 {[%clk 0:00:10]}  b1=Q {[%clk 0:00:13]} 56. e7 {[%clk 0:00:10]}  Qf5+ {[%clk 0:00:14]} 57. Kg8 {[%clk 0:00:10]}  Qe6+ {[%clk 0:00:13]} 58. Kf8 {[%clk 0:00:11]}  Bh6+ {[%clk 0:00:14]} 59. Ke8 {[%clk 0:00:10]}  Kd6 {[%clk 0:00:14]} 0-1


[Site "https://www.chess.com"]

[Event "Titled Tuesday Blitz April 26 Early 2022"]
[White "Abdusattorov, Nodirbek"]
[Black "Subelj, Jan"]
[WhiteFideId "14204118"]
[BlackFideId "14618583"]
[WhiteElo "2663"]
[BlackElo "2306"]
[Result "1-0"]
[Round "01"]
[TimeControl "180+1"]
[Date "2022.04.26"]
[WhiteClock "0:00:09"]
[BlackClock "0:00:02"]

1. d4 {[%clk 0:02:59]}  Nf6 {[%clk 0:02:58]} 2. Nf3 {[%clk 0:02:59]}  e6 {[%clk 0:02:58]} 3. Bf4 {[%clk 0:02:58]}  d5 {[%clk 0:02:54]} 4. e3 {[%clk 0:02:58]}  Bd6 {[%clk 0:02:53]} 5. Nbd2 {[%clk 0:02:52]}  b6 {[%clk 0:02:48]} 6. c3 {[%clk 0:02:50]}  O-O {[%clk 0:02:45]} 7. Ne5 {[%clk 0:02:42]}  c5 {[%clk 0:02:38]} 8. Bd3 {[%clk 0:02:41]}  Ba6 {[%clk 0:02:37]} 9. Bxa6 {[%clk 0:02:40]}  Nxa6 {[%clk 0:02:37]} 10. h4 {[%clk 0:02:37]}  Ne8 {[%clk 0:02:13]} 11. h5 {[%clk 0:02:34]}  f6 {[%clk 0:02:13]} 12. Nef3 {[%clk 0:02:25]}  cxd4 {[%clk 0:02:00]} 13. Bxd6 {[%clk 0:02:20]}  Nxd6 {[%clk 0:01:51]} 14. exd4 {[%clk 0:02:21]}  Nc7 {[%clk 0:01:48]} 15. Qe2 {[%clk 0:02:07]}  Re8 {[%clk 0:01:46]} 16. O-O {[%clk 0:02:02]}  Qe7 {[%clk 0:01:41]} 17. Rfe1 {[%clk 0:02:02]}  Qf7 {[%clk 0:01:41]} 18. Nh4 {[%clk 0:01:44]}  e5 {[%clk 0:01:37]} 19. dxe5 {[%clk 0:01:43]}  Rxe5 {[%clk 0:01:34]} 20. Qg4 {[%clk 0:01:44]}  Qxh5 {[%clk 0:01:05]} 21. Qd7 {[%clk 0:01:43]}  Qxh4 {[%clk 0:01:03]} 22. Rxe5 {[%clk 0:01:42]}  fxe5 {[%clk 0:01:04]} 23. Qxd6 {[%clk 0:01:30]}  Qh6 {[%clk 0:00:55]} 24. Qxc7 {[%clk 0:01:15]}  Qxd2 {[%clk 0:00:54]} 25. Qxe5 {[%clk 0:01:16]}  Rf8 {[%clk 0:00:54]} 26. Rf1 {[%clk 0:01:16]}  Qxb2 {[%clk 0:00:51]} 27. Qxd5+ {[%clk 0:01:16]}  Kh8 {[%clk 0:00:51]} 28. Qd6 {[%clk 0:00:53]}  Kg8 {[%clk 0:00:47]} 29. Qe6+ {[%clk 0:00:52]}  Rf7 {[%clk 0:00:39]} 30. a4 {[%clk 0:00:41]}  g6 {[%clk 0:00:31]} 31. Qe8+ {[%clk 0:00:37]}  Rf8 {[%clk 0:00:30]} 32. Qe6+ {[%clk 0:00:35]}  Rf7 {[%clk 0:00:29]} 33. Qc8+ {[%clk 0:00:35]}  Kg7 {[%clk 0:00:28]} 34. Qc4 {[%clk 0:00:31]}  Qd2 {[%clk 0:00:25]} 35. g3 {[%clk 0:00:28]}  Re7 {[%clk 0:00:16]} 36. Kg2 {[%clk 0:00:22]}  Qe2 {[%clk 0:00:10]} 37. Qd4+ {[%clk 0:00:21]}  Qe5 {[%clk 0:00:10]} 38. Rd1 {[%clk 0:00:12]}  Qxd4 {[%clk 0:00:10]} 39. cxd4 {[%clk 0:00:13]}  Rd7 {[%clk 0:00:09]} 40. Kf3 {[%clk 0:00:13]}  Kf6 {[%clk 0:00:09]} 41. Ke4 {[%clk 0:00:14]}  Ke6 {[%clk 0:00:09]} 42. f4 {[%clk 0:00:11]}  Kd6 {[%clk 0:00:09]} 43. g4 {[%clk 0:00:10]}  Re7+ {[%clk 0:00:09]} 44. Kf3 {[%clk 0:00:11]}  Kd5 {[%clk 0:00:09]} 45. f5 {[%clk 0:00:12]}  Rf7 {[%clk 0:00:03]} 46. Kf4 {[%clk 0:00:12]}  h6 {[%clk 0:00:03]} 47. Rh1 {[%clk 0:00:10]}  h5 {[%clk 0:00:02]} 48. Kg5 {[%clk 0:00:08]}  gxf5 {[%clk 0:00:02]} 49. gxh5 {[%clk 0:00:08]}  f4 {[%clk 0:00:02]} 50. h6 {[%clk 0:00:09]}  f3 {[%clk 0:00:02]} 51. h7 {[%clk 0:00:09]} 1-0


[Site "https://www.chess.com"]

[Event "Titled Tuesday Blitz April 26 Early 2022"]
[White "Aggelis, Nikolaos"]
[Black "Andreikin, Dmitry"]
[WhiteFideId "4213220"]
[BlackFideId "4158814"]
[WhiteElo "2154"]
[BlackElo "2736"]
[Result "0-1"]
[Round "01"]
[TimeControl "180+1"]
[Date "2022.04.26"]
[WhiteClock "0:00:09"]
[BlackClock "0:01:19"]

1. d4 {[%clk 0:02:43]}  Nf6 {[%clk 0:02:59]} 2. g3 {[%clk 0:02:43]}  d5 {[%clk 0:02:57]} 3. Nf3 {[%clk 0:02:43]}  Bf5 {[%clk 0:02:56]} 4. c4 {[%clk 0:02:40]}  dxc4 {[%clk 0:02:55]} 5. Bg2 {[%clk 0:02:39]}  Nc6 {[%clk 0:02:53]} 6. O-O {[%clk 0:02:38]}  e6 {[%clk 0:02:52]} 7. Qa4 {[%clk 0:02:32]}  Be4 {[%clk 0:02:39]} 8. Qxc4 {[%clk 0:02:28]}  Qd5 {[%clk 0:02:34]} 9. Qxd5 {[%clk 0:02:27]}  Nxd5 {[%clk 0:02:31]} 10. Nc3 {[%clk 0:02:11]}  Bxf3 {[%clk 0:02:30]} 11. Bxf3 {[%clk 0:02:10]}  Nxd4 {[%clk 0:02:30]} 12. Bxd5 {[%clk 0:02:07]}  exd5 {[%clk 0:02:29]} 13. Nxd5 {[%clk 0:02:06]}  Nxe2+ {[%clk 0:02:25]} 14. Kg2 {[%clk 0:02:06]}  O-O-O {[%clk 0:02:26]} 15. Nf4 {[%clk 0:01:57]}  Nd4 {[%clk 0:02:20]} 16. Rd1 {[%clk 0:01:44]}  Bb4 {[%clk 0:02:15]} 17. Nd3 {[%clk 0:01:38]}  Ba5 {[%clk 0:02:15]} 18. Bg5 {[%clk 0:01:21]}  f6 {[%clk 0:02:11]} 19. Bd2 {[%clk 0:01:20]}  Nc2 {[%clk 0:02:07]} 20. Rac1 {[%clk 0:01:14]}  Bxd2 {[%clk 0:02:04]} 21. Rxc2 {[%clk 0:01:08]}  Rxd3 {[%clk 0:02:01]} 22. Rcxd2 {[%clk 0:01:07]}  Rxd2 {[%clk 0:02:02]} 23. Rxd2 {[%clk 0:01:07]}  Rd8 {[%clk 0:02:02]} 24. Re2 {[%clk 0:01:07]}  c5 {[%clk 0:02:02]} 25. Re7 {[%clk 0:01:04]}  Rd7 {[%clk 0:02:02]} 26. Re2 {[%clk 0:01:00]}  Kc7 {[%clk 0:02:02]} 27. Kf1 {[%clk 0:00:59]}  b5 {[%clk 0:02:03]} 28. Ke1 {[%clk 0:00:59]}  a5 {[%clk 0:02:03]} 29. Re6 {[%clk 0:00:53]}  a4 {[%clk 0:02:01]} 30. Ra6 {[%clk 0:00:40]}  Kb7 {[%clk 0:02:01]} 31. Ra5 {[%clk 0:00:37]}  Kb6 {[%clk 0:01:59]} 32. Ra8 {[%clk 0:00:37]}  c4 {[%clk 0:02:00]} 33. a3 {[%clk 0:00:26]}  Kc5 {[%clk 0:01:59]} 34. Rc8+ {[%clk 0:00:19]}  Kd4 {[%clk 0:01:59]} 35. Ke2 {[%clk 0:00:19]}  h5 {[%clk 0:01:54]} 36. h4 {[%clk 0:00:18]}  g5 {[%clk 0:01:53]} 37. Rh8 {[%clk 0:00:17]}  gxh4 {[%clk 0:01:52]} 38. gxh4 {[%clk 0:00:18]}  Rd5 {[%clk 0:01:52]} 39. Rf8 {[%clk 0:00:18]}  Re5+ {[%clk 0:01:52]} 40. Kd2 {[%clk 0:00:18]}  Rf5 {[%clk 0:01:53]} 41. Ke2 {[%clk 0:00:18]}  Ke4 {[%clk 0:01:52]} 42. Re8+ {[%clk 0:00:18]}  Re5 {[%clk 0:01:24]} 43. Rf8 {[%clk 0:00:17]}  Kf4+ {[%clk 0:01:23]} 44. Kd2 {[%clk 0:00:15]}  f5 {[%clk 0:01:23]} 45. Rh8 {[%clk 0:00:15]}  Kg4 {[%clk 0:01:24]} 46. f4 {[%clk 0:00:12]}  Rd5+ {[%clk 0:01:20]} 47. Kc3 {[%clk 0:00:12]}  Rd3+ {[%clk 0:01:20]} 48. Kc2 {[%clk 0:00:11]}  Kxh4 {[%clk 0:01:19]} 49. Rf8 {[%clk 0:00:09]}  Kg4 {[%clk 0:01:19]} 50. Rb8 {[%clk 0:00:09]}  h4 {[%clk 0:01:19]} 51. Rxb5 {[%clk 0:00:09]}  h3 {[%clk 0:01:19]} 0-1


[Site "https://www.chess.com"]

[Event "Titled Tuesday Blitz April 26 Early 2022"]
[White "Andrews, Todd"]
[Black "Biletskiy, Danylo"]
[WhiteFideId "2012456"]
[BlackFideId "14155419"]
[WhiteElo "2348"]
[BlackElo "2087"]
[Result "1/2-1/2"]
[Round "01"]
[TimeControl "180+1"]
[Date "2022.04.26"]
[WhiteClock "0:00:10"]
[BlackClock "0:00:15"]

1. d4 {[%clk 0:02:42]}  Nf6 {[%clk 0:02:59]} 2. c4 {[%clk 0:02:41]}  e6 {[%clk 0:03:00]} 3. Nc3 {[%clk 0:02:40]}  Bb4 {[%clk 0:03:00]} 4. Qc2 {[%clk 0:02:41]}  O-O {[%clk 0:03:00]} 5. a3 {[%clk 0:02:41]}  Bxc3+ {[%clk 0:02:59]} 6. Qxc3 {[%clk 0:02:42]}  d5 {[%clk 0:02:56]} 7. cxd5 {[%clk 0:02:39]}  exd5 {[%clk 0:02:55]} 8. Bg5 {[%clk 0:02:38]}  Nbd7 {[%clk 0:02:54]} 9. e3 {[%clk 0:02:38]}  c6 {[%clk 0:02:51]} 10. Bd3 {[%clk 0:02:36]}  Ne4 {[%clk 0:02:47]} 11. Bxd8 {[%clk 0:02:33]}  Nxc3 {[%clk 0:02:47]} 12. Bh4 {[%clk 0:02:32]}  Ne4 {[%clk 0:02:46]} 13. f3 {[%clk 0:02:32]}  Nef6 {[%clk 0:02:44]} 14. Ne2 {[%clk 0:02:32]}  Re8 {[%clk 0:02:42]} 15. Bf2 {[%clk 0:02:22]}  Nf8 {[%clk 0:02:38]} 16. O-O {[%clk 0:02:21]}  Ne6 {[%clk 0:02:33]} 17. b4 {[%clk 0:02:20]}  Bd7 {[%clk 0:02:33]} 18. Rfc1 {[%clk 0:02:19]}  a5 {[%clk 0:02:29]} 19. g4 {[%clk 0:02:03]}  h5 {[%clk 0:02:14]} 20. h3 {[%clk 0:02:00]}  Ra7 {[%clk 0:01:42]} 21. Nc3 {[%clk 0:01:48]}  axb4 {[%clk 0:01:26]} 22. axb4 {[%clk 0:01:48]}  Rea8 {[%clk 0:01:27]} 23. Rab1 {[%clk 0:01:47]}  Ra3 {[%clk 0:01:25]} 24. Kg2 {[%clk 0:01:32]}  g5 {[%clk 0:00:58]} 25. Bf5 {[%clk 0:01:26]}  Kg7 {[%clk 0:00:58]} 26. Bg3 {[%clk 0:01:16]}  hxg4 {[%clk 0:00:46]} 27. hxg4 {[%clk 0:01:15]}  Ng8 {[%clk 0:00:47]} 28. Be5+ {[%clk 0:01:13]}  f6 {[%clk 0:00:47]} 29. Bd6 {[%clk 0:01:12]}  Nh6 {[%clk 0:00:47]} 30. Bd3 {[%clk 0:01:08]}  Nf7 {[%clk 0:00:44]} 31. Bg3 {[%clk 0:01:05]}  Rh8 {[%clk 0:00:42]} 32. Rc2 {[%clk 0:01:05]}  Rha8 {[%clk 0:00:32]} 33. b5 {[%clk 0:01:04]}  Ra1 {[%clk 0:00:32]} 34. Rxa1 {[%clk 0:01:00]}  Rxa1 {[%clk 0:00:33]} 35. bxc6 {[%clk 0:01:00]}  Bxc6 {[%clk 0:00:33]} 36. Bf5 {[%clk 0:00:46]}  Nf8 {[%clk 0:00:26]} 37. Ne2 {[%clk 0:00:43]}  Ng6 {[%clk 0:00:24]} 38. Nc1 {[%clk 0:00:39]}  Nh4+ {[%clk 0:00:20]} 39. Bxh4 {[%clk 0:00:38]}  gxh4 {[%clk 0:00:21]} 40. Nd3 {[%clk 0:00:38]}  Ng5 {[%clk 0:00:20]} 41. Nf4 {[%clk 0:00:36]}  Kf7 {[%clk 0:00:20]} 42. Rb2 {[%clk 0:00:33]}  Ra3 {[%clk 0:00:20]} 43. Kf2 {[%clk 0:00:31]}  h3 {[%clk 0:00:20]} 44. Rb1 {[%clk 0:00:17]}  h2 {[%clk 0:00:16]} 45. Rh1 {[%clk 0:00:16]}  Ra2+ {[%clk 0:00:16]} 46. Kg3 {[%clk 0:00:16]}  Ra3 {[%clk 0:00:13]} 47. Ng2 {[%clk 0:00:16]}  b5 {[%clk 0:00:09]} 48. Rxh2 {[%clk 0:00:16]}  b4 {[%clk 0:00:10]} 49. Rh1 {[%clk 0:00:16]}  b3 {[%clk 0:00:10]} 50. Rb1 {[%clk 0:00:16]}  Bb5 {[%clk 0:00:10]} 51. Nf4 {[%clk 0:00:15]}  Bc4 {[%clk 0:00:10]} 52. Bg6+ {[%clk 0:00:15]}  Ke7 {[%clk 0:00:10]} 53. Bf5 {[%clk 0:00:15]}  Kd6 {[%clk 0:00:10]} 54. Nh5 {[%clk 0:00:13]}  Ra2 {[%clk 0:00:11]} 55. Nxf6 {[%clk 0:00:12]}  Ne6 {[%clk 0:00:11]} 56. e4 {[%clk 0:00:10]}  Nxd4 {[%clk 0:00:11]} 57. g5 {[%clk 0:00:11]}  Nxf5+ {[%clk 0:00:10]} 58. exf5 {[%clk 0:00:10]}  b2 {[%clk 0:00:11]} 59. g6 {[%clk 0:00:10]}  Bd3 {[%clk 0:00:12]} 60. Rxb2 {[%clk 0:00:09]}  Rxb2 {[%clk 0:00:12]} 61. g7 {[%clk 0:00:10]}  Rb8 {[%clk 0:00:12]} 62. g8=Q {[%clk 0:00:09]}  Rxg8+ {[%clk 0:00:13]} 63. Nxg8 {[%clk 0:00:10]}  Bxf5 {[%clk 0:00:14]} 64. Nh6 {[%clk 0:00:10]}  Be6 {[%clk 0:00:14]} 65. Kf4 {[%clk 0:00:10]}  Bd7 {[%clk 0:00:13]} 66. Ng4 {[%clk 0:00:10]}  Bxg4 {[%clk 0:00:12]} 67. fxg4 {[%clk 0:00:11]}  Ke6 {[%clk 0:00:13]} 68. g5 {[%clk 0:00:11]}  Kf7 {[%clk 0:00:14]} 69. Ke5 {[%clk 0:00:10]}  Kg6 {[%clk 0:00:14]} 70. Kxd5 {[%clk 0:00:10]}  Kxg5 {[%clk 0:00:15]} 1/2-1/2


[Site "https://www.chess.com"]

[Event "Titled Tuesday Blitz April 26 Early 2022"]
[White "Arabidze, Meri"]
[Black "Ajay Krishna, S"]
[WhiteFideId "13604040"]
[BlackFideId "5096430"]
[WhiteElo "2335"]
[BlackElo "2247"]
[Result "1-0"]
[Round "01"]
[TimeControl "180+1"]
[Date "2022.04.26"]
[WhiteClock "0:01:28"]
[BlackClock "0:01:18"]

1. Nf3 {[%clk 0:02:59]}  c5 {[%clk 0:02:58]} 2. g3 {[%clk 0:02:58]}  Nc6 {[%clk 0:02:57]} 3. Bg2 {[%clk 0:02:59]}  g6 {[%clk 0:02:55]} 4. d4 {[%clk 0:02:59]}  cxd4 {[%clk 0:02:55]} 5. Nxd4 {[%clk 0:03:00]}  Bg7 {[%clk 0:02:55]} 6. Nxc6 {[%clk 0:02:59]}  bxc6 {[%clk 0:02:56]} 7. c4 {[%clk 0:03:00]}  Rb8 {[%clk 0:02:53]} 8. Nc3 {[%clk 0:02:59]}  Ba6 {[%clk 0:02:50]} 9. Qa4 {[%clk 0:02:53]}  Qb6 {[%clk 0:02:29]} 10. O-O {[%clk 0:02:48]}  Nh6 {[%clk 0:02:25]} 11. Be3 {[%clk 0:02:35]}  Qb7 {[%clk 0:02:23]} 12. Ne4 {[%clk 0:02:28]}  Qc8 {[%clk 0:02:14]} 13. Nc5 {[%clk 0:02:26]}  Bb7 {[%clk 0:02:14]} 14. Rad1 {[%clk 0:02:15]}  O-O {[%clk 0:01:49]} 15. Nxd7 {[%clk 0:02:09]}  Nf5 {[%clk 0:01:48]} 16. Bc5 {[%clk 0:01:59]}  Ba8 {[%clk 0:01:23]} 17. Nxb8 {[%clk 0:01:49]}  Qxb8 {[%clk 0:01:23]} 18. b3 {[%clk 0:01:50]}  Qe5 {[%clk 0:01:21]} 19. Qxa7 {[%clk 0:01:43]}  Qxe2 {[%clk 0:01:21]} 20. Rfe1 {[%clk 0:01:38]}  Qc2 {[%clk 0:01:21]} 21. Be4 {[%clk 0:01:37]}  Qb2 {[%clk 0:01:20]} 22. Bxf5 {[%clk 0:01:32]}  gxf5 {[%clk 0:01:21]} 23. Qxe7 {[%clk 0:01:30]}  Qxa2 {[%clk 0:01:18]} 24. Rd8 {[%clk 0:01:28]} 1-0


[Site "https://www.chess.com"]

[Event "Titled Tuesday Blitz April 26 Early 2022"]
[White "Bachmann, Axel"]
[Black "Moussard, Jules"]
[WhiteFideId "3700488"]
[BlackFideId "642908"]
[WhiteElo "2587"]
[BlackElo "2589"]
[Result "0-1"]
[Round "01"]
[TimeControl "180+1"]
[Date "2022.04.26"]
[WhiteClock "0:00:21"]
[BlackClock "0:01:34"]

1. d4 {[%clk 0:02:52]}  d5 {[%clk 0:03:00]} 2. Nf3 {[%clk 0:02:52]}  Nf6 {[%clk 0:03:00]} 3. g3 {[%clk 0:02:51]}  e6 {[%clk 0:02:59]} 4. c4 {[%clk 0:02:49]}  dxc4 {[%clk 0:02:54]} 5. Bg2 {[%clk 0:02:49]}  Nc6 {[%clk 0:02:50]} 6. Qa4 {[%clk 0:02:38]}  Bd6 {[%clk 0:02:43]} 7. Qxc4 {[%clk 0:02:36]}  O-O {[%clk 0:02:43]} 8. O-O {[%clk 0:02:36]}  e5 {[%clk 0:02:33]} 9. dxe5 {[%clk 0:02:33]}  Nxe5 {[%clk 0:02:34]} 10. Nxe5 {[%clk 0:02:33]}  Bxe5 {[%clk 0:02:35]} 11. Nc3 {[%clk 0:02:32]}  c6 {[%clk 0:02:35]} 12. Rd1 {[%clk 0:02:09]}  Be6 {[%clk 0:02:29]} 13. Rxd8 {[%clk 0:02:00]}  Bxc4 {[%clk 0:02:28]} 14. Rxf8+ {[%clk 0:01:57]}  Kxf8 {[%clk 0:02:22]} 15. Be3 {[%clk 0:01:58]}  Bxc3 {[%clk 0:02:21]} 16. bxc3 {[%clk 0:01:56]}  Bxe2 {[%clk 0:02:21]} 17. Rb1 {[%clk 0:01:52]}  Ba6 {[%clk 0:02:19]} 18. a4 {[%clk 0:01:47]}  Nd5 {[%clk 0:02:13]} 19. Bxd5 {[%clk 0:01:46]}  cxd5 {[%clk 0:02:14]} 20. a5 {[%clk 0:01:42]}  Rc8 {[%clk 0:02:03]} 21. Bd4 {[%clk 0:01:34]}  f6 {[%clk 0:02:01]} 22. f4 {[%clk 0:01:16]}  Kf7 {[%clk 0:01:58]} 23. Rb3 {[%clk 0:01:05]}  Kg6 {[%clk 0:01:45]} 24. Bxa7 {[%clk 0:01:01]}  Kf5 {[%clk 0:01:45]} 25. Kf2 {[%clk 0:00:41]}  h5 {[%clk 0:01:43]} 26. Bd4 {[%clk 0:00:39]}  Kg4 {[%clk 0:01:37]} 27. Kg2 {[%clk 0:00:35]}  Re8 {[%clk 0:01:32]} 28. Rb2 {[%clk 0:00:31]}  Re1 {[%clk 0:01:31]} 29. h3+ {[%clk 0:00:31]}  Kf5 {[%clk 0:01:31]} 30. Kf3 {[%clk 0:00:25]}  Rh1 {[%clk 0:01:31]} 31. g4+ {[%clk 0:00:24]}  Kg6 {[%clk 0:01:31]} 32. Kg3 {[%clk 0:00:22]}  h4+ {[%clk 0:01:24]} 33. Kxh4 {[%clk 0:00:20]}  Bf1 {[%clk 0:01:25]} 34. Kg3 {[%clk 0:00:19]}  Rxh3+ {[%clk 0:01:25]} 35. Kf2 {[%clk 0:00:18]}  Rh2+ {[%clk 0:01:26]} 36. Kxf1 {[%clk 0:00:18]}  Rxb2 {[%clk 0:01:27]} 37. Ke1 {[%clk 0:00:16]}  Rg2 {[%clk 0:01:26]} 38. Kf1 {[%clk 0:00:12]}  Rxg4 {[%clk 0:01:27]} 39. Be3 {[%clk 0:00:12]}  Kf5 {[%clk 0:01:27]} 40. Ke2 {[%clk 0:00:12]}  Rxf4 {[%clk 0:01:27]} 41. Bxf4 {[%clk 0:00:13]}  Kxf4 {[%clk 0:01:28]} 42. Kd3 {[%clk 0:00:13]}  Ke5 {[%clk 0:01:28]} 43. c4 {[%clk 0:00:13]}  Kd6 {[%clk 0:01:29]} 44. Kd4 {[%clk 0:00:13]}  dxc4 {[%clk 0:01:29]} 45. Kxc4 {[%clk 0:00:14]}  Kc6 {[%clk 0:01:30]} 46. Kb4 {[%clk 0:00:14]}  g5 {[%clk 0:01:30]} 47. Kc4 {[%clk 0:00:15]}  g4 {[%clk 0:01:31]} 48. Kd4 {[%clk 0:00:16]}  f5 {[%clk 0:01:31]} 49. Ke3 {[%clk 0:00:17]}  Kb5 {[%clk 0:01:31]} 50. Kf4 {[%clk 0:00:18]}  Kxa5 {[%clk 0:01:31]} 51. Kxf5 {[%clk 0:00:19]}  g3 {[%clk 0:01:32]} 52. Kf4 {[%clk 0:00:19]}  g2 {[%clk 0:01:33]} 53. Ke4 {[%clk 0:00:20]}  g1=Q {[%clk 0:01:33]} 54. Kf5 {[%clk 0:00:21]}  Qd4 {[%clk 0:01:34]} 55. Kg5 {[%clk 0:00:21]}  Qe4 {[%clk 0:01:34]} 0-1


[Site "https://www.chess.com"]

[Event "Titled Tuesday Blitz April 26 Early 2022"]
[White "Barria Zuniga, Daniel"]
[Black "Winkels, Marcel"]
[WhiteFideId "3400816"]
[BlackFideId "1003887"]
[WhiteElo "2414"]
[BlackElo "1900"]
[Result "1-0"]
[Round "01"]
[TimeControl "180+1"]
[Date "2022.04.26"]
[WhiteClock "0:01:21"]
[BlackClock "0:00:39"]

1. c4 {[%clk 0:02:53]}  e5 {[%clk 0:02:56]} 2. g3 {[%clk 0:02:51]}  Nc6 {[%clk 0:02:55]} 3. Bg2 {[%clk 0:02:49]}  f5 {[%clk 0:02:55]} 4. Nc3 {[%clk 0:02:47]}  Nf6 {[%clk 0:02:56]} 5. Nh3 {[%clk 0:02:44]}  d6 {[%clk 0:02:45]} 6. Rb1 {[%clk 0:02:42]}  Be7 {[%clk 0:02:46]} 7. b4 {[%clk 0:02:42]}  O-O {[%clk 0:02:45]} 8. b5 {[%clk 0:02:43]}  Nb8 {[%clk 0:02:41]} 9. O-O {[%clk 0:02:42]}  Qe8 {[%clk 0:02:35]} 10. d3 {[%clk 0:02:40]}  Qh5 {[%clk 0:02:34]} 11. e3 {[%clk 0:02:38]}  Qxd1 {[%clk 0:02:13]} 12. Rxd1 {[%clk 0:02:36]}  Nbd7 {[%clk 0:02:13]} 13. a4 {[%clk 0:02:34]}  Rb8 {[%clk 0:01:59]} 14. a5 {[%clk 0:02:32]}  Nc5 {[%clk 0:01:56]} 15. d4 {[%clk 0:02:29]}  Nce4 {[%clk 0:01:46]} 16. Nxe4 {[%clk 0:02:27]}  Nxe4 {[%clk 0:01:45]} 17. Bb2 {[%clk 0:02:25]}  exd4 {[%clk 0:01:39]} 18. Bxd4 {[%clk 0:02:11]}  Bf6 {[%clk 0:01:35]} 19. Bxa7 {[%clk 0:02:10]}  Ra8 {[%clk 0:01:33]} 20. b6 {[%clk 0:02:08]}  Be6 {[%clk 0:01:23]} 21. Bxe4 {[%clk 0:02:00]}  fxe4 {[%clk 0:01:22]} 22. Nf4 {[%clk 0:02:01]}  Bxc4 {[%clk 0:01:21]} 23. Rbc1 {[%clk 0:02:01]}  d5 {[%clk 0:01:16]} 24. Nxd5 {[%clk 0:02:00]}  Bxd5 {[%clk 0:01:16]} 25. Rxd5 {[%clk 0:02:00]}  c6 {[%clk 0:01:11]} 26. Rd7 {[%clk 0:02:00]}  Rf7 {[%clk 0:01:10]} 27. Rcd1 {[%clk 0:02:00]}  Raf8 {[%clk 0:01:06]} 28. a6 {[%clk 0:01:55]}  bxa6 {[%clk 0:00:52]} 29. b7 {[%clk 0:01:54]}  Be5 {[%clk 0:00:51]} 30. Bc5 {[%clk 0:01:23]}  Rb8 {[%clk 0:00:39]} 31. Rd8+ {[%clk 0:01:21]} 1-0


[Site "https://www.chess.com"]

[Event "Titled Tuesday Blitz April 26 Early 2022"]
[White "Bethke, Richard"]
[Black "Butti, Enrique"]
[WhiteFideId "12959243"]
[BlackFideId "3700470"]
[WhiteElo "2528"]
[BlackElo "2080"]
[Result "1-0"]
[Round "01"]
[TimeControl "180+1"]
[Date "2022.04.26"]
[WhiteClock "0:02:25"]
[BlackClock "0:02:16"]

1. e4 {[%clk 0:03:00]}  c5 {[%clk 0:02:59]} 2. Nf3 {[%clk 0:03:00]}  d6 {[%clk 0:02:59]} 3. d4 {[%clk 0:03:01]}  cxd4 {[%clk 0:02:59]} 4. Nxd4 {[%clk 0:03:02]}  Nf6 {[%clk 0:02:59]} 5. Nc3 {[%clk 0:03:01]}  a6 {[%clk 0:02:59]} 6. Be3 {[%clk 0:02:57]}  Nc6 {[%clk 0:02:57]} 7. Nxc6 {[%clk 0:02:55]}  bxc6 {[%clk 0:02:57]} 8. f3 {[%clk 0:02:55]}  e5 {[%clk 0:02:55]} 9. Qd2 {[%clk 0:02:53]}  d5 {[%clk 0:02:54]} 10. exd5 {[%clk 0:02:52]}  cxd5 {[%clk 0:02:54]} 11. Bg5 {[%clk 0:02:52]}  d4 {[%clk 0:02:52]} 12. Ne4 {[%clk 0:02:49]}  Nxe4 {[%clk 0:02:51]} 13. fxe4 {[%clk 0:02:48]}  f6 {[%clk 0:02:49]} 14. Bh4 {[%clk 0:02:47]}  Bb7 {[%clk 0:02:47]} 15. Bd3 {[%clk 0:02:46]}  Qb6 {[%clk 0:02:40]} 16. c3 {[%clk 0:02:46]}  dxc3 {[%clk 0:02:40]} 17. bxc3 {[%clk 0:02:46]}  Bc5 {[%clk 0:02:39]} 18. Bf2 {[%clk 0:02:43]}  Bxf2+ {[%clk 0:02:34]} 19. Qxf2 {[%clk 0:02:44]}  Qxf2+ {[%clk 0:02:28]} 20. Kxf2 {[%clk 0:02:44]}  Rc8 {[%clk 0:02:27]} 21. Rab1 {[%clk 0:02:42]}  Rc7 {[%clk 0:02:23]} 22. Rb3 {[%clk 0:02:36]}  O-O {[%clk 0:02:22]} 23. Rhb1 {[%clk 0:02:35]}  Ba8 {[%clk 0:02:19]} 24. Ke3 {[%clk 0:02:34]}  a5 {[%clk 0:02:18]} 25. Rb8 {[%clk 0:02:30]}  Rcc8 {[%clk 0:02:17]} 26. Rxc8 {[%clk 0:02:24]}  Rxc8 {[%clk 0:02:16]} 27. Rb5 {[%clk 0:02:25]} 1-0


[Site "https://www.chess.com"]